fUSD/lending_fUSD_20240223
["ID","MTS","AMOUNT","RATE_DAILY","PERIOD"]
[314940713,1708690257251,-500.0,0.00027808,2]
[314940714,1708690257260,-500.0,0.00027808,2]
[314940715,1708690257270,-500.0,0.00027808,2]
[314940716,1708690257279,-563.70026689,0.00027808,2]
[314940717,1708690257288,-500.0,0.00027808,2]
[314940718,1708690257297,-245.92630615,0.00027808,2]
[314940719,1708690257307,-500.0,0.00027808,2]
[314940720,1708690257317,-500.0,0.00027808,2]
[314940721,1708690257326,-500.0,0.00027808,2]
[314940722,1708690257335,-500.0,0.00027808,2]
[314940723,1708690257344,-500.0,0.00027808,2]
[314940724,1708690257354,-500.0,0.00027808,2]
[314940725,1708690257365,-500.0,0.00027808,2]
[314940726,1708690257375,-500.0,0.00027808,2]
[314940727,1708690257385,-500.0,0.00027808,2]
[314940728,1708690257394,-500.0,0.00027808,2]
[314940729,1708690257404,-632.22,0.00027808,2]
[314940730,1708690257413,-500.0,0.00027808,2]
[314940731,1708690257423,-500.0,0.00027808,2]
[314940732,1708690257431,-511.2325807,0.00027808,2]
[314940733,1708690257441,-500.0,0.00027808,2]
[314940734,1708690257451,-628.53172544,0.00027808,2]
[314940735,1708690257460,-500.0,0.00027808,2]
[314940736,1708690257469,-500.0,0.00027808,2]
[314940737,1708690257478,-500.0,0.00027808,2]
[314940738,1708690257487,-500.0,0.00027808,2]
[314940739,1708690257497,-500.0,0.00027808,2]
[314940740,1708690257507,-500.0,0.00027808,2]
[314940741,1708690257517,-500.0,0.00027808,2]
[314940742,1708690257526,-500.0,0.00027808,2]
[314940743,1708690257535,-430.5015177,0.00027808,2]
[314940744,1708690257544,-500.0,0.00027808,2]
[314940745,1708690257554,-500.0,0.00027808,2]
[314940746,1708690257563,-500.0,0.00027808,2]
[314940747,1708690257572,-500.0,0.00027808,2]
[314940748,1708690257581,-500.0,0.00027808,2]
[314940749,1708690257590,-500.0,0.00027808,2]
[314940750,1708690257599,-500.0,0.00027808,2]
[314940751,1708690257608,-500.0,0.00027808,2]
[314940752,1708690257618,-816.51,0.00027808,2]
[314940753,1708690257627,-500.0,0.00027808,2]
[314940754,1708690257636,-500.0,0.00027808,2]
[314940755,1708690257646,-500.0,0.00027808,2]
[314940756,1708690257655,-500.0,0.00027808,2]
[314940757,1708690257664,-500.0,0.00027808,2]
[314940758,1708690257673,-500.0,0.00027808,2]
[314940759,1708690257682,-500.0,0.00027808,2]
[314940760,1708690257691,-500.0,0.00027808,2]
[314940761,1708690257701,-500.0,0.00027808,2]
[314940762,1708690257709,-500.0,0.00027808,2]
[314940763,1708690257719,-500.0,0.00027808,2]
[314940764,1708690257728,-500.0,0.00027808,2]
[314940765,1708690257736,-500.0,0.00027808,2]
[314940766,1708690257745,-500.0,0.00027808,2]
[314940767,1708690257754,-597.28526198,0.00027808,2]
[314940768,1708690257763,-500.0,0.00027808,2]
[314940769,1708690257772,-330.13739073,0.00027808,2]
[314940770,1708690257781,-500.0,0.00027808,2]
[314940771,1708690257790,-365.26268484,0.00027808,2]
[314940772,1708690257799,-500.0,0.00027808,2]
[314940773,1708690257808,-500.0,0.00027808,2]
[314940774,1708690257817,-500.0,0.00027808,2]
[314940775,1708690257826,-500.0,0.00027808,2]
[314940776,1708690257835,-500.0,0.00027808,2]
[314940777,1708690257844,-500.0,0.00027808,2]
[314940778,1708690257853,-500.0,0.00027808,2]
[314940779,1708690257862,-500.0,0.00027808,2]
[314940780,1708690257872,-500.0,0.00027808,2]
[314940781,1708690257882,-500.0,0.00027808,2]
[314940782,1708690257891,-321.16192228,0.00027808,2]
[314940783,1708690257900,-500.0,0.00027808,2]
[314940784,1708690257909,-208.89470395,0.00027808,2]
[314940785,1708690257919,-500.0,0.00027808,2]
[314940786,1708690257928,-500.0,0.00027808,2]
[314940787,1708690257937,-500.0,0.00027808,2]
[314940788,1708690257945,-500.0,0.00027808,2]
[314940789,1708690257955,-500.0,0.00027808,2]
[314940790,1708690257964,-500.0,0.00027808,2]
[314940791,1708690257973,-500.0,0.00027808,2]
[314940792,1708690257982,-500.0,0.00027808,2]
[314940793,1708690257991,-500.0,0.00027808,2]
[314940794,1708690258000,-500.0,0.00027808,2]
[314940795,1708690258009,-500.0,0.00027808,2]
[314940796,1708690258018,-500.0,0.00027808,2]
[314940797,1708690258027,-500.0,0.00027808,2]
[314940798,1708690258036,-373.38825338,0.00027808,2]
[314940799,1708690258045,-500.0,0.00027808,2]
[314940800,1708690258055,-500.0,0.00027808,2]
[314940801,1708690258065,-500.0,0.00027808,2]
[314940802,1708690258074,-710.61,0.00027808,2]
[314940803,1708690258083,-500.0,0.00027808,2]
[314940804,1708690258092,-500.0,0.00027808,2]
[314940805,1708690258102,-500.0,0.00027808,2]
[314940806,1708690258111,-500.0,0.00027808,2]
[314940807,1708690258120,-500.0,0.00027808,2]
[314940808,1708690258129,-500.0,0.00027808,2]
[314940809,1708690258139,-253.107226,0.00027808,7]
[314940810,1708690258148,-500.0,0.00027808,2]
[314940811,1708690258157,-500.0,0.00027808,2]
[314940812,1708690258166,-500.0,0.00027808,2]
[314940813,1708690258175,-500.0,0.00027808,2]
[314940814,1708690258184,-500.0,0.00027808,2]
[314940815,1708690258193,-500.0,0.00027808,2]
[314940816,1708690258201,-500.0,0.00027808,2]
[314940817,1708690258210,-500.0,0.00027808,2]
[314940818,1708690258220,-500.0,0.00027808,2]
[314940819,1708690258229,-500.0,0.00027808,2]
[314940820,1708690258238,-500.0,0.00027808,2]
[314940821,1708690258247,-500.0,0.00027808,2]
[314940822,1708690258255,-500.0,0.00027808,2]
[314940823,1708690258265,-500.0,0.00027808,2]
[314940824,1708690258274,-500.0,0.00027808,2]
[314940825,1708690258283,-500.0,0.00027808,2]
[314940826,1708690258292,-500.0,0.00027808,2]
[314940827,1708690258301,-893.82,0.00027808,2]
[314940828,1708690258310,-9495.13,0.00027808,2]
[314940829,1708690258320,-500.0,0.00027808,2]
[314940830,1708690258329,-500.0,0.00027808,2]
[314940831,1708690258338,-500.0,0.00027808,2]
[314940832,1708690258347,-500.0,0.00027808,2]
[314940833,1708690258356,-697.4,0.00027808,2]
[314940834,1708690258366,-500.0,0.00027808,2]
[314940835,1708690258376,-969.47,0.00027808,2]
[314940836,1708690258385,-500.0,0.00027808,2]
[314940837,1708690258394,-650.91,0.00027808,2]
[314940838,1708690258404,-500.0,0.00027808,2]
[314940839,1708690258414,-500.0,0.00027808,2]
[314940840,1708690258423,-500.0,0.00027808,2]
[314940841,1708690258432,-500.0,0.00027808,2]
[314940842,1708690258442,-2598.16,0.00027808,2]
[314940843,1708690258451,-500.0,0.00027808,2]
[314940844,1708690258461,-561.71,0.00027808,2]
[314940845,1708690258470,-1150.02,0.00027808,2]
[314940846,1708690258480,-796.34,0.00027808,2]
[314940847,1708690258489,-500.0,0.00027808,2]
[314940848,1708690258499,-500.0,0.00027808,2]
[314940849,1708690258509,-500.0,0.00027808,2]
[314940850,1708690258518,-513.96,0.00027808,2]
[314940851,1708690258527,-582.73,0.00027808,2]
[314940852,1708690258537,-1302.34,0.00027808,2]
[314940853,1708690258546,-500.0,0.00027808,2]
[314940854,1708690258555,-781.56,0.00027808,2]
[314940855,1708690258564,-500.0,0.00027808,2]
[314940856,1708690258574,-500.0,0.00027808,2]
[314940857,1708690258583,-1964.22,0.00027808,2]
[314940858,1708690258591,-991.92,0.00027808,2]
[314940859,1708690258601,-500.0,0.00027808,2]
[314940860,1708690258610,-644.3,0.00027808,2]
[314940861,1708690258619,-204.88277752,0.00027808,2]
[314940862,1708690258628,-625.51271575,0.00027808,2]
[314940863,1708690258637,-1360.2,0.00027808,2]
[314940864,1708690258646,-500.0,0.00027808,2]
[314940865,1708690258655,-500.0,0.00027808,2]
[314940866,1708690258664,-500.0,0.00027808,2]
[314940867,1708690258673,-2185.71,0.00027808,2]
[314940868,1708690258683,-500.0,0.00027808,2]
[314940869,1708690258692,-2300.83,0.00027808,2]
[314940870,1708690258702,-500.0,0.00027808,2]
[314940871,1708690258711,-793.54,0.00027808,2]
[314940872,1708690258720,-500.0,0.00027808,2]
[314940873,1708690258730,-2274.06,0.00027808,2]
[314940874,1708690258740,-8929.92,0.00027808,2]
[314940875,1708690258749,-500.0,0.00027808,2]
[314940876,1708690258759,-952.26,0.00027808,2]
[314940877,1708690258768,-500.0,0.00027808,2]
[314940878,1708690258778,-500.0,0.00027808,2]
[314940879,1708690258787,-1898.21,0.00027808,2]
[314940880,1708690258797,-500.0,0.00027808,2]
[314940881,1708690258806,-2928.48,0.00027808,2]
[314940882,1708690258816,-980.93,0.00027808,2]
[314940883,1708690258826,-564.15,0.00027808,2]
[314940884,1708690258835,-151.0,0.00027808,7]
[314940885,1708690258845,-500.0,0.00027808,2]
[314940886,1708690258854,-583.24,0.00027808,2]
[314940887,1708690258864,-500.0,0.00027808,2]
[314940888,1708690258874,-1160.32,0.00027808,2]
[314940889,1708690258883,-500.0,0.00027808,2]
[314940890,1708690258892,-742.26,0.00027808,2]
[314940891,1708690258902,-500.0,0.00027808,2]
[314940892,1708690258911,-200.296243,0.00027808,7]
[314940893,1708690258921,-1297.04,0.00027808,2]
[314940894,1708690258930,-539.46,0.00027808,2]
[314940895,1708690258939,-174.51816888,0.00027808,2]
[314940896,1708690258949,-500.0,0.00027808,2]
[314940897,1708690258958,-500.0,0.00027808,2]
[314940898,1708690258968,-500.0,0.00027808,2]
[314940899,1708690258977,-500.0,0.00027808,2]
[314940900,1708690258986,-500.0,0.00027808,2]
[314940901,1708690258996,-793.96,0.00027808,2]
[314940902,1708690259005,-638.24,0.00027808,2]
[314940903,1708690259015,-500.0,0.00027808,2]
[314940904,1708690259024,-513.11,0.00027808,2]
[314940905,1708690259034,-500.0,0.00027808,2]
[314940906,1708690259044,-500.0,0.00027808,2]
[314940907,1708690259055,-500.0,0.00027808,2]
[314940908,1708690259065,-1478.4,0.00027808,2]
[314940909,1708690259079,-500.0,0.00027808,2]
[314940910,1708690259089,-2434.71,0.00027808,2]
[314940911,1708690259099,-500.0,0.00027808,2]
[314940912,1708690259109,-500.0,0.00027808,2]
[314940913,1708690259119,-500.0,0.00027808,2]
[314940914,1708690259130,-500.0,0.00027808,2]
[314940915,1708690259140,-500.0,0.00027808,2]
[314940916,1708690259152,-3672.38,0.00027808,2]
[314940917,1708690259162,-926.71,0.00027808,2]
[314940918,1708690259172,-151.0,0.00027808,7]
[314940919,1708690259182,-500.0,0.00027808,2]
[314940920,1708690259191,-500.0,0.00027808,2]
[314940921,1708690259201,-842.42,0.00027808,2]
[314940922,1708690259210,-500.0,0.00027808,2]
[314940923,1708690259220,-500.0,0.00027808,2]
[314940924,1708690259229,-500.0,0.00027808,2]
[314940925,1708690259240,-500.0,0.00027808,2]
[314940926,1708690259249,-5063.8,0.00027808,2]
[314940927,1708690259258,-500.0,0.00027808,2]
[314940928,1708690259268,-1344.95,0.00027808,2]
[314940929,1708690259278,-1831.22,0.00027808,2]
[314940930,1708690259288,-500.0,0.00027808,2]
[314940931,1708690259298,-500.0,0.00027808,2]
[314940932,1708690259308,-151.0,0.00027808,7]
[314940933,1708690259321,-500.0,0.00027808,2]
[314940934,1708690259332,-500.0,0.00027808,2]
[314940935,1708690259343,-151.0,0.00027808,7]
[314940936,1708690259353,-500.0,0.00027808,2]
[314940937,1708690259363,-500.0,0.00027808,2]
[314940938,1708690259374,-500.0,0.00027808,2]
[314940939,1708690259384,-155.643189,0.00027808,7]
[314940940,1708690259394,-500.0,0.00027808,2]
[314940941,1708690259404,-500.0,0.00027808,2]
[314940942,1708690259414,-1534.42,0.00027808,2]
[314940943,1708690259424,-596.78,0.00027808,2]
[314940944,1708690259434,-785.51,0.00027808,2]
[314940945,1708690259444,-536.88,0.00027808,2]
[314940946,1708690259454,-500.0,0.00027808,2]
[314940947,1708690259464,-688.1,0.00027808,2]
[314940948,1708690259474,-192.89644015,0.00027808,2]
[314940949,1708690259483,-500.0,0.00027808,2]
[314940950,1708690259493,-500.0,0.00027808,2]
[314940951,1708690259503,-699.22,0.00027808,2]
[314940952,1708690259513,-2233.66,0.00027808,2]
[314940953,1708690259522,-500.0,0.00027808,2]
[314940954,1708690259532,-500.0,0.00027808,2]
[314940955,1708690259542,-1922.54,0.00027808,2]
[314940956,1708690259552,-928.89,0.00027808,2]
[314940957,1708690259562,-365.5506121,0.00027808,2]
[314940958,1708690259929,-1178.42544257,0.00027808,2]
[314940959,1708690259944,-367.24096787,0.00027808,2]
[314940960,1708690894093,208.0,0.00023165,2]
[314940961,1708691226159,-155.0,0.000236,2]
[314940962,1708691226181,-695.0,0.00023601,2]
[314940963,1708691226202,-613.04,0.00023602,2]
[314940964,1708691226224,-225.2664691,0.00024,3]
[314940965,1708691226244,-1130.6176,0.000249,2]
[314940966,1708691226265,-750.0,0.00025,3]
[314940967,1708691226286,-888.12,0.00025468,2]
[314940968,1708691226307,-17756.36,0.00025476,2]
[314940969,1708691226333,-409.31,0.00025476,2]
[314940970,1708691226355,-250.0,0.00025479,2]
[314940971,1708691226376,-320.99,0.0002555,2]
[314940972,1708691226401,-169.02,0.00025566,2]
[314940973,1708691226422,-207.97,0.0002572,2]
[314940974,1708691226445,-613.04,0.00025866,2]
[314940975,1708691226466,-207.04,0.00026073,2]
[314940976,1708691226486,-150.05,0.00026073,2]
[314940977,1708691226507,-499.99,0.00026148,2]
[314940978,1708691226530,-150.0,0.00026152,2]
[314940979,1708691226553,-150.0,0.00026157,2]
[314940980,1708691226575,-150.0,0.00026162,2]
[314940981,1708691226597,-150.0,0.00026168,2]
[314940982,1708691226619,-200.56,0.00026194,2]
[314940983,1708691226643,-298.0,0.00026249,2]
[314940984,1708691226665,-150.0,0.00026337,2]
[314940985,1708691226687,-951.15,0.00026346,2]
[314940986,1708691226708,-2201.11,0.00026349,2]
[314940987,1708691226730,-150.0,0.00026439,2]
[314940988,1708691226753,-172.0,0.00026493,2]
[314940989,1708691226774,-150.0,0.00026634,2]
[314940990,1708691226796,-150.0,0.00026689,2]
[314940991,1708691226818,-150.0,0.00026744,2]
[314940992,1708691226840,-150.0,0.00026753,2]
[314940993,1708691226862,-150.0,0.00026765,2]
[314940994,1708691226882,-679.01,0.00026768,2]
[314940995,1708691226904,-271.71182374,0.00026796,2]
[314940996,1708691226924,-2694.00358207,0.00026797,2]
[314940997,1708691240325,-1008.53065537,0.00025467,2]
[314940998,1708691240344,-683.11321793,0.00026797,2]
[314940999,1708691240365,-1000.0,0.00026797,2]
[314941000,1708691240385,-2091.6287,0.00026797,2]
[314941001,1708691240407,-1050.2559,0.00026797,2]
[314941002,1708691240428,-150.0,0.00026822,2]
[314941003,1708691240449,-150.0,0.0002685,2]
[314941004,1708691240470,-150.0,0.00026887,2]
[314941005,1708691240491,-20226.60832147,0.00026897,2]
[314941006,1708691252129,-1008.53065537,0.00026895,2]
[314941007,1708691252149,-155.0,0.00026896,2]
[314941008,1708691252171,-4482.85058959,0.00026897,2]
[314941018,1708691434959,-834.26875927,0.000239,2]
[314941019,1708691434970,-513.24362,0.000239,2]
[314941020,1708691434982,-1643.10392073,0.000239,2]
[314941021,1708691434991,-551.73,0.00024424,2]
[314941022,1708691435000,-1008.53065537,0.00025,2]
[314941023,1708691435010,-208.0,0.00025514,2]
[314941024,1708691435019,-207.04,0.00026341,2]
[314941025,1708691435028,-551.73,0.00026688,2]
[314941026,1708691435038,-2500.0,0.00026797,2]
[314941027,1708691435047,-300.0,0.00026797,2]
[314941028,1708691435058,-5146.52829871,0.00026798,2]
[314941029,1708691435068,-15344.76633833,0.00026798,2]
[314941030,1708691435077,-155.0,0.00026895,2]
[314941031,1708691435087,-1241.11389382,0.00026895,2]
[314941032,1708691435096,-102194.44146158,0.00026897,2]
[314941033,1708691435108,-5760.18692736,0.00026897,2]
[314941034,1708691435117,-5861.10034693,0.00026897,2]
[314941035,1708691435129,-3959.99174973,0.00026897,2]
[314941036,1708691435140,-637.00299283,0.00026897,2]
[314941037,1708691435152,-5032.09184,0.00026897,2]
[314941038,1708691435172,-658.40712581,0.00026897,2]
[314941039,1708691435195,-607.08259119,0.00026897,2]
[314941040,1708691435206,-510.37872,0.00026897,2]
[314941041,1708691435218,-1377.1550004,0.00026897,2]
[314941042,1708691435241,-29832.32883311,0.00026897,2]
[314941043,1708691435250,-500.0,0.00026897,2]
[314941044,1708691435260,-5176.93730785,0.00027,2]
[314941045,1708691435272,-3965.04359405,0.00027,2]
[314941046,1708691435282,-800.0,0.00027,3]
[314941047,1708691435291,-285.85640595,0.00027017,2]
[314941048,1708691435303,-318.3600002,0.00027017,2]
[314941079,1708691437909,-325.17650596,0.00027017,2]
[314941080,1708691437921,-493.41667279,0.00027017,2]
[314941081,1708691437930,-207.0,0.00027071,2]
[314941082,1708691437940,-402.0,0.00027071,2]
[314941083,1708691437949,-82.43728264,0.00027112,2]
[314941084,1708691437984,-466.16410362,0.00027112,2]
[314941085,1708691437996,-320.55082822,0.00027112,2]
[314941086,1708691438007,-18.96778552,0.00027112,2]
[314941087,1708691438016,-423.71,0.00027123,2]
[314941088,1708691438026,-413.01,0.00027123,2]
[314941089,1708691438035,-150.0,0.00027123,2]
[314941090,1708691438044,-5146.52829871,0.00027142,2]
[314941091,1708691438053,-15344.76633829,0.00027142,2]
[314941092,1708691438063,-1422.8095849,0.00027236,2]
[314941093,1708691438073,-5000.0,0.00027297,2]
[314941094,1708691438083,-630.6325,0.00027297,2]
[314941095,1708691438092,-20000.0,0.00027297,2]
[314941096,1708691438102,-170.52878158,0.00027297,2]
[314941097,1708691438111,-645.27741142,0.00027297,3]
[314941098,1708691438120,-164.0,0.00027381,2]
[314941099,1708691438129,-500.0,0.00027397,2]
[314941100,1708691438138,-500.0,0.00027397,2]
[314941101,1708691438147,-500.0,0.00027397,2]
[314941102,1708691438157,-500.01097135,0.00027397,2]
[314941103,1708691438166,-500.0,0.00027397,2]
[314941104,1708691438174,-500.0,0.00027397,2]
[314941105,1708691438183,-500.0,0.00027397,2]
[314941106,1708691438192,-500.0,0.00027397,2]
[314941107,1708691438201,-500.0,0.00027397,2]
[314941108,1708691438210,-500.0,0.00027397,2]
[314941109,1708691438219,-500.0,0.00027397,2]
[314941110,1708691438229,-591.04103931,0.00027397,2]
[314941111,1708691438238,-500.0,0.00027397,2]
[314941112,1708691438247,-500.0,0.00027397,2]
[314941114,1708691438256,-500.0,0.00027397,2]
[314941116,1708691438265,-572.90210835,0.00027397,2]
[314941118,1708691438274,-500.0,0.00027397,2]
[314941120,1708691438284,-500.0,0.00027397,2]
[314941122,1708691438293,-523.75066061,0.00027397,2]
[314941124,1708691438302,-504.45641069,0.00027397,2]
[314941126,1708691438311,-500.0,0.00027397,2]
[314941127,1708691438322,-500.0,0.00027397,2]
[314941130,1708691438331,-500.0,0.00027397,2]
[314941131,1708691438341,-516.90905626,0.00027397,2]
[314941133,1708691438350,-556.58,0.00027397,2]
[314941135,1708691438359,-500.0,0.00027397,2]
[314941136,1708691438368,-500.0,0.00027397,2]
[314941137,1708691438377,-500.0,0.00027397,2]
[314941138,1708691438386,-526.85,0.00027397,2]
[314941139,1708691438396,-500.0,0.00027397,2]
[314941140,1708691438405,-500.0,0.00027397,2]
[314941141,1708691438417,-680.43,0.00027397,2]
[314941142,1708691438426,-500.0,0.00027397,2]
[314941143,1708691438436,-500.0,0.00027397,2]
[314941144,1708691438445,-269.18445581,0.00027397,2]
[314941145,1708691438454,-500.0,0.00027397,2]
[314941146,1708691438464,-500.0,0.00027397,2]
[314941147,1708691438473,-500.0,0.00027397,2]
[314941148,1708691438483,-500.0,0.00027397,2]
[314941149,1708691438493,-527.30572264,0.00027397,2]
[314941150,1708691438502,-500.0,0.00027397,2]
[314941151,1708691438511,-500.0,0.00027397,2]
[314941152,1708691438520,-286.28299537,0.00027397,2]
[314941153,1708691438529,-500.0,0.00027397,2]
[314941154,1708691438538,-500.0,0.00027397,2]
[314941155,1708691438547,-500.0,0.00027397,2]
[314941156,1708691438556,-500.0,0.00027397,2]
[314941157,1708691438565,-500.0,0.00027397,2]
[314941158,1708691438576,-500.0,0.00027397,2]
[314941159,1708691438586,-500.0,0.00027397,2]
[314941160,1708691438595,-570.7293551,0.00027397,2]
[314941161,1708691438605,-558.00689021,0.00027397,2]
[314941162,1708691438614,-500.0,0.00027397,2]
[314941163,1708691438623,-500.0,0.00027397,2]
[314941164,1708691438633,-500.0,0.00027397,2]
[314941165,1708691438642,-518.64,0.00027397,2]
[314941166,1708691438651,-500.0,0.00027397,2]
[314941167,1708691438661,-500.0,0.00027397,2]
[314941168,1708691438670,-500.0,0.00027397,2]
[314941169,1708691438680,-500.0,0.00027397,2]
[314941170,1708691438689,-500.0,0.00027397,2]
[314941171,1708691438698,-500.0,0.00027397,2]
[314941172,1708691438708,-500.0,0.00027397,2]
[314941173,1708691438718,-500.0,0.00027397,2]
[314941174,1708691438727,-500.0,0.00027397,2]
[314941175,1708691438736,-500.0,0.00027397,2]
[314941176,1708691438746,-500.0,0.00027397,2]
[314941177,1708691438755,-500.0,0.00027397,2]
[314941178,1708691438765,-510.19,0.00027397,2]
[314941179,1708691438774,-500.0,0.00027397,2]
[314941180,1708691438783,-500.0,0.00027397,2]
[314941181,1708691438792,-500.0,0.00027397,2]
[314941182,1708691438802,-500.0,0.00027397,2]
[314941183,1708691438811,-500.0,0.00027397,2]
[314941184,1708691438821,-500.0,0.00027397,2]
[314941185,1708691438832,-500.0,0.00027397,2]
[314941186,1708691438841,-500.0,0.00027397,2]
[314941187,1708691438850,-500.0,0.00027397,2]
[314941188,1708691438860,-500.0,0.00027397,2]
[314941189,1708691438869,-500.0,0.00027397,2]
[314941190,1708691438879,-500.0,0.00027397,2]
[314941191,1708691438888,-500.0,0.00027397,2]
[314941192,1708691438897,-500.0,0.00027397,2]
[314941193,1708691438907,-378.66035091,0.00027397,2]
[314941194,1708691438916,-500.0,0.00027397,2]
[314941195,1708691438925,-539.08288956,0.00027397,2]
[314941196,1708691438935,-500.0,0.00027397,2]
[314941197,1708691438944,-500.0,0.00027397,2]
[314941198,1708691438953,-500.0,0.00027397,2]
[314941199,1708691438963,-500.0,0.00027397,2]
[314941200,1708691438973,-349.44412524,0.00027397,2]
[314941201,1708691438982,-500.0,0.00027397,2]
[314941202,1708691438992,-500.0,0.00027397,2]
[314941203,1708691439001,-500.0,0.00027397,2]
[314941204,1708691439010,-500.0,0.00027397,2]
[314941205,1708691439019,-500.0,0.00027397,2]
[314941206,1708691439028,-500.0,0.00027397,2]
[314941207,1708691439037,-500.0,0.00027397,2]
[314941208,1708691439046,-500.0,0.00027397,2]
[314941209,1708691439055,-528.98266818,0.00027397,2]
[314941210,1708691439064,-500.0,0.00027397,2]
[314941211,1708691439075,-500.0,0.00027397,2]
[314941212,1708691439084,-500.0,0.00027397,2]
[314941213,1708691439092,-500.0,0.00027397,2]
[314941214,1708691439101,-376.04935292,0.00027397,2]
[314941215,1708691439110,-449.69497421,0.00027397,2]
[314941216,1708691439119,-500.0,0.00027397,2]
[314941217,1708691439129,-500.0,0.00027397,2]
[314941218,1708691439137,-500.0,0.00027397,2]
[314941219,1708691439147,-552.85977486,0.00027397,2]
[314941220,1708691439156,-500.0,0.00027397,2]
[314941221,1708691439165,-500.0,0.00027397,2]
[314941222,1708691439174,-500.0,0.00027397,2]
[314941223,1708691439183,-447.32610995,0.00027397,2]
[314941224,1708691439192,-500.0,0.00027397,2]
[314941225,1708691439202,-500.0,0.00027397,2]
[314941226,1708691439213,-353.1308435,0.00027397,7]
[314941227,1708691439222,-500.0,0.00027397,2]
[314941228,1708691439231,-500.0,0.00027397,2]
[314941229,1708691439240,-500.0,0.00027397,2]
[314941230,1708691439250,-500.0,0.00027397,2]
[314941231,1708691439259,-23.51661749,0.00027397,2]
[314941232,1708691439582,-476.48338251,0.00027397,2]
[314941233,1708691439591,-500.0,0.00027397,2]
[314941234,1708691439600,-500.0,0.00027397,2]
[314941235,1708691439609,-500.0,0.00027397,2]
[314941236,1708691439618,-500.0,0.00027397,2]
[314941237,1708691439627,-500.0,0.00027397,2]
[314941238,1708691439637,-500.0,0.00027397,2]
[314941239,1708691439647,-500.0,0.00027397,2]
[314941240,1708691439656,-500.0,0.00027397,2]
[314941241,1708691439666,-500.0,0.00027397,2]
[314941242,1708691439676,-500.0,0.00027397,2]
[314941243,1708691439685,-53.67651842,0.00027397,2]
[314941244,1708691439697,-446.32348158,0.00027397,2]
[314941245,1708691439707,-150.0,0.00027397,2]
[314941246,1708691439716,-500.0,0.00027397,2]
[314941247,1708691439725,-421.18634295,0.00027397,2]
[314941248,1708691439737,-78.81365705,0.00027397,2]
[314941249,1708691439746,-500.0,0.00027397,2]
[314941250,1708691439756,-500.0,0.00027397,2]
[314941251,1708691439765,-500.0,0.00027397,2]
[314941252,1708691439774,-500.0,0.00027397,2]
[314941253,1708691439783,-500.0,0.00027397,2]
[314941254,1708691439792,-500.0,0.00027397,2]
[314941255,1708691439801,-418.92195895,0.00027397,2]
[314941256,1708691439810,-500.0,0.00027397,2]
[314941257,1708691439820,-866.95,0.00027397,2]
[314941258,1708691439831,-500.0,0.00027397,2]
[314941259,1708691439840,-500.0,0.00027397,2]
[314941260,1708691439849,-500.0,0.00027397,2]
[314941261,1708691439859,-500.0,0.00027397,2]
[314941262,1708691439868,-500.0,0.00027397,2]